bitfinex/quotes_BTCUSD_20260127
["timestamp","ask_amount","ask_price","bid_price","bid_amount"]
[1769529895648,0.05666456,88239.0,88226.0,0.01533811]
[1769529895834,0.15552396,88243.0,88226.0,0.01533811]
[1769529895986,0.01134034,88248.0,88226.0,0.01533811]
[1769529895987,0.02737523,88242.0,88226.0,0.01533811]
[1769529896187,0.02737523,88242.0,88226.0,0.0522025]
[1769529896485,0.02737523,88242.0,88227.0,0.01939411]
[1769529897303,0.09886192,88247.0,88227.0,0.01939411]
[1769529897612,0.08403768,88242.0,88227.0,0.01939411]
[1769529897781,0.05666313,88241.0,88227.0,0.01939411]
[1769529898223,0.08403794,88242.0,88227.0,0.01939411]
[1769529898425,0.05666271,88242.0,88228.0,0.0056724]
[1769529898609,0.05666301,88241.0,88228.0,0.0056724]
[1769529898839,0.12623715,88241.0,88228.0,0.0056724]
[1769529899012,0.05666472,88239.0,88226.0,0.00046551]
[1769529899224,0.05666102,88245.0,88226.0,0.00046551]
[1769529899423,0.02737523,88241.0,88227.0,0.03911354]
[1769529899824,0.05666215,88244.0,88227.0,0.03911354]
[1769529900155,0.01134034,88248.0,88231.0,0.04361207]
[1769529900356,0.01054034,88248.0,88231.0,0.04361207]
[1769529901336,0.01054034,88248.0,88234.0,0.04361207]
[1769529901667,0.10939586,88271.0,88233.0,0.67845076]
[1769529901871,0.10939586,88271.0,88230.0,0.33698153]
[1769529901872,0.0113326,88259.0,88236.0,0.04586102]
[1769529902068,0.0113326,88259.0,88240.0,0.04586102]
[1769529902269,0.02737523,88253.0,88234.0,0.04586102]
[1769529902470,0.0113326,88259.0,88226.0,0.00046551]
[1769529902471,0.0113326,88259.0,88235.0,0.67845076]
[1769529902728,0.10939586,88280.0,88252.0,0.67845076]
[1769529902928,0.10939586,88280.0,88240.0,0.33698153]
[1769529902929,0.01,88252.0,88244.0,0.04586102]
[1769529903239,0.01,88252.0,88244.0,0.04469342]
[1769529903512,0.01132866,88271.0,88243.0,0.11644]
[1769529903513,0.01132866,88271.0,88249.0,0.67845076]
[1769529903719,0.01132866,88271.0,88243.0,0.11644]
[1769529903720,0.02737523,88299.0,88271.0,0.01]
[1769529903873,0.01132606,88292.0,88275.0,0.67845076]
[1769529904418,0.0566342,88286.0,88276.0,0.04752627]
[1769529904624,0.0566342,88286.0,88270.0,0.11644]
[1769529904625,0.63839882,88291.0,88270.0,0.11644]
[1769529904768,0.01132606,88292.0,88270.0,0.79489076]
[1769529904969,0.00013925,88291.0,88272.0,0.67845076]
[1769529905188,0.00013925,88291.0,88270.0,0.11644]
[1769529905189,0.00013925,88291.0,88276.0,0.67845076]
[1769529905389,0.01132606,88305.0,88280.0,0.04752627]
[1769529905594,0.01132606,88305.0,88284.0,0.04977519]
[1769529905845,0.01132606,88305.0,88285.0,0.04977519]
[1769529906049,0.05662293,88304.0,88285.0,0.04977519]
[1769529906243,0.01132606,88305.0,88285.0,0.04977519]
[1769529906415,0.01132606,88305.0,88280.0,0.00013925]
[1769529906416,0.01132606,88305.0,88288.0,0.67845076]
[1769529906632,0.01132606,88305.0,88280.0,0.00013925]
[1769529906633,0.01132606,88305.0,88291.0,0.04977519]
[1769529907552,0.01132606,88305.0,88292.0,0.67845076]
[1769529907752,0.01132606,88305.0,88280.0,0.00013925]
[1769529907753,0.01132606,88305.0,88295.0,0.04977519]
[1769529908073,0.02737523,88319.0,88297.0,0.04977519]
[1769529909452,0.02737523,88319.0,88300.0,0.04977519]
[1769529910369,0.02737523,88305.0,88287.0,0.05202433]
[1769529910779,0.61879018,88304.0,88280.0,0.00013925]
[1769529910998,0.05662407,88302.0,88282.0,0.67845076]
[1769529911200,0.06794528,88311.0,88284.0,0.67845076]
[1769529911539,0.33698153,88350.0,88280.0,0.00013925]
[1769529911540,0.33698153,88350.0,88293.0,0.67845076]
[1769529911541,0.00132606,88325.0,88293.0,0.67845076]
[1769529911751,0.00132606,88325.0,88296.0,0.0497755]
[1769529911956,0.00132606,88325.0,88280.0,0.33712078]
[1769529911957,0.00132606,88325.0,88300.0,0.0497755]
[1769529912096,0.05793517,88325.0,88302.0,0.67845076]
[1769529912292,0.05661144,88322.0,88303.0,0.0497755]
[1769529912503,0.00132606,88325.0,88303.0,0.0494755]
[1769529912910,0.22644483,88322.0,88297.0,0.1164]
[1769529913108,0.61879018,88321.0,88297.0,0.1164]
[1769529913362,0.02737523,88315.0,88300.0,0.0496255]
[1769529913543,0.22646466,88314.0,88292.0,0.04512738]
[1769529913825,0.02737523,88315.0,88280.0,0.00013925]
[1769529913827,0.05662676,88298.0,88280.0,0.00013925]
[1769529914050,0.02870129,88315.0,88280.0,0.00013925]
[1769529914052,0.02737523,88286.0,88280.0,0.00013925]
[1769529914227,0.01,88292.0,88280.0,0.00013925]
[1769529914228,0.05663681,88282.0,88280.0,0.00013925]
[1769529914428,0.23784827,88292.0,88280.0,0.00013925]
[1769529914429,0.01132606,88292.0,88280.0,0.00013925]
[1769529914565,0.00132606,88292.0,88280.0,0.00013925]
[1769529914970,0.00132606,88292.0,88269.0,0.03066665]
[1769529914971,0.02737523,88286.0,88269.0,0.03066665]
[1769529915180,0.17783552,88286.0,88260.0,0.1164]
[1769529915383,0.02737523,88272.0,88260.0,0.1164]
[1769529915711,0.02737523,88272.0,88250.0,0.03066665]
[1769529915912,0.05664374,88271.0,88250.0,0.03066665]
[1769529916465,0.05664668,88267.0,88250.0,0.03066665]
[1769529916596,0.05664735,88266.0,88250.0,0.03066665]
[1769529916794,0.00132606,88270.0,88250.0,0.03066665]
[1769529917400,0.15164697,88270.0,88246.0,0.1164]
[1769529917806,0.15164697,88270.0,88248.0,0.02391895]
[1769529917807,0.00132606,88270.0,88248.0,0.02391895]
[1769529918033,0.00132606,88270.0,88250.0,0.02391895]
[1769529918230,0.00132606,88270.0,88253.0,0.02391895]
[1769529918608,0.05664615,88268.0,88253.0,0.02391895]
[1769529918813,0.00132606,88270.0,88253.0,0.02391895]
[1769529919184,0.00132606,88270.0,88255.0,0.02391895]
[1769529920974,0.02751461,88286.0,88256.0,0.67845076]
[1769529920975,0.00013938,88286.0,88256.0,0.67845076]
[1769529921181,0.00013938,88286.0,88252.0,0.02333708]
[1769529921182,0.02737523,88284.0,88252.0,0.02333708]
[1769529921373,0.00013938,88286.0,88246.0,0.1164]
[1769529921374,0.00013938,88286.0,88260.0,0.33698153]
[1769529921590,0.02737523,88309.0,88260.0,0.33698153]
[1769529921591,0.01132508,88299.0,88266.0,0.02333708]
[1769529921860,0.01132508,88299.0,88270.0,0.67845076]
[1769529922070,0.02737523,88295.0,88273.0,0.02333708]
[1769529922343,0.02737523,88295.0,88278.0,0.67845076]
[1769529922520,0.01132508,88299.0,88279.0,0.02312098]
[1769529922897,0.49865276,88310.0,88267.0,0.1164]
[1769529922898,0.02737523,88308.0,88283.0,0.02312098]
[1769529923121,0.15267035,88336.0,88290.0,0.33698153]
[1769529923122,0.08398306,88328.0,88290.0,0.33698153]
[1769529923311,0.08398306,88328.0,88279.0,0.0272]
[1769529923312,0.01132308,88316.0,88295.0,0.02312098]
[1769529923502,0.01132308,88316.0,88291.0,0.1164]
[1769529923503,0.01132308,88316.0,88298.0,0.69034704]
[1769529923700,0.01132308,88316.0,88301.0,0.02312098]
[1769529924128,0.0006663,88331.0,88291.0,0.1164]
[1769529924129,0.05660795,88327.0,88304.0,0.69034704]
[1769529924327,0.05660795,88327.0,88291.0,0.1164]
[1769529924328,0.02737523,88322.0,88306.0,0.02486034]
[1769529924539,0.02784028,88322.0,88306.0,0.02486034]
[1769529924776,0.00046505,88322.0,88306.0,0.02486034]
[1769529924914,0.00046505,88322.0,88307.0,0.02486034]
[1769529926335,0.0566124,88320.0,88307.0,0.02486034]
[1769529926552,0.00046505,88322.0,88307.0,0.02486034]
[1769529926950,0.00046505,88322.0,88280.0,0.33698153]
[1769529926951,0.00046505,88322.0,88275.0,0.69109942]
[1769529926952,0.01,88307.0,88275.0,0.69109942]
[1769529927250,0.01,88307.0,88279.0,0.69109942]
[1769529927378,0.01,88307.0,88276.0,0.1164]
[1769529927379,0.01,88307.0,88281.0,0.69109942]
[1769529927593,0.01,88307.0,88285.0,0.69109942]
[1769529927805,0.01132204,88314.0,88288.0,0.02486034]
[1769529928009,0.04988545,88311.0,88277.0,0.02486034]
[1769529928251,0.05662001,88308.0,88277.0,0.02486034]
[1769529928466,0.22648611,88306.0,88277.0,0.02486034]
[1769529928665,0.099,88309.0,88277.0,0.02486034]
[1769529928956,0.33698153,88310.0,88277.0,0.02486034]
[1769529928957,0.01132204,88302.0,88277.0,0.02486034]
[1769529929903,0.099,88301.0,88276.0,0.1164]
[1769529930046,0.01132204,88302.0,88276.0,0.14126034]
[1769529930871,0.01132204,88302.0,88278.0,0.02486034]
[1769529931069,0.0566245,88301.0,88278.0,0.71595976]
[1769529931274,0.01132204,88302.0,88278.0,0.71595976]
[1769529931473,0.0566262,88299.0,88278.0,0.71595976]
[1769529931876,0.01132204,88302.0,88278.0,0.71595976]
[1769529932863,0.01132204,88302.0,88280.0,0.69109942]
[1769529933144,0.01132204,88302.0,88276.0,0.1164]
[1769529933145,0.05663257,88289.0,88276.0,0.1164]
[1769529933366,0.02737523,88295.0,88274.0,0.0272]
[1769529933367,0.05663505,88285.0,88274.0,0.0272]
[1769529933568,0.33698153,88290.0,88274.0,0.0272]
[1769529933569,0.02251022,88289.0,88274.0,0.0272]
[1769529933819,0.05663188,88290.0,88274.0,0.0272]
[1769529933997,0.01132204,88292.0,88274.0,0.0272]
[1769529934160,0.03869727,88292.0,88274.0,0.0272]
[1769529934372,0.01132204,88292.0,88277.0,0.71595976]
[1769529934559,0.01036278,88292.0,88278.0,0.02486034]
[1769529934760,0.01004298,88292.0,88278.0,0.02486034]
[1769529937005,0.01004298,88292.0,88279.0,0.02486034]
[1769529937201,0.01004298,88292.0,88280.0,0.02486034]
[1769529938228,0.01004298,88292.0,88281.0,0.69109942]
[1769529938463,0.01004298,88292.0,88280.0,0.02486034]
[1769529939666,0.01004298,88292.0,88274.0,0.05219972]
[1769529940606,0.01004298,88292.0,88274.0,0.02733938]
[1769529940758,0.02737523,88287.0,88274.0,0.02733938]
[1769529940947,0.099,88285.0,88274.0,0.02733938]
[1769529941572,0.099,88285.0,88259.0,0.14122034]
[1769529941573,0.0566354,88285.0,88259.0,0.14122034]
[1769529941785,0.02251022,88283.0,88259.0,0.14122034]
[1769529942111,0.09868335,88305.0,88264.0,0.05664792]
[1769529942319,0.02737523,88304.0,88272.0,0.02486034]
[1769529942522,0.02737523,88304.0,88275.0,0.69109942]
[1769529942673,0.02737523,88304.0,88264.0,0.00013938]
[1769529942674,0.12619657,88290.0,88266.0,0.1164]
[1769529942880,0.1258767,88290.0,88266.0,0.1164]
[1769529943082,0.05663257,88289.0,88266.0,0.1164]
[1769529943268,0.02705536,88290.0,88267.0,0.69109942]
[1769529943668,0.05663424,88286.0,88266.0,0.1164]
[1769529943913,0.09882134,88288.0,88267.0,0.1164]
[1769529944272,0.05663347,88287.0,88268.0,0.1164]
[1769529944795,0.09882134,88288.0,88268.0,0.1164]
[1769529944796,0.05663284,88288.0,88268.0,0.1164]
[1769529944996,0.02705536,88290.0,88268.0,0.1164]
[1769529944997,0.01004298,88292.0,88270.0,0.02486034]
[1769529945307,0.13491265,88315.0,88268.0,0.1164]
[1769529945309,0.09028917,88329.0,88282.0,0.33744531]
[1769529945552,0.6518404,88335.0,88297.0,0.05662706]
[1769529945553,0.01775703,88335.0,88297.0,0.05662706]
[1769529945765,0.01775703,88335.0,88277.0,0.02737523]
[1769529945766,0.0007672,88331.0,88314.0,0.02486034]
[1769529945990,0.0007672,88331.0,88313.0,0.69109942]
[1769529945991,0.01775703,88335.0,88316.0,0.02486034]
[1769529946183,0.000425,88348.0,88316.0,0.69109942]
[1769529946404,0.000425,88348.0,88317.0,0.69109942]
[1769529946731,0.000425,88348.0,88321.0,0.69109942]
[1769529946891,0.000425,88348.0,88315.0,0.1164]
[1769529946892,0.00089005,88348.0,88323.0,0.69109942]
[1769529947113,0.01132343,88352.0,88315.0,0.34285993]
[1769529947114,0.01132343,88352.0,88332.0,0.0566046]
[1769529947311,0.000425,88373.0,88341.0,0.69109942]
[1769529947312,0.02737523,88369.0,88341.0,0.69109942]
[1769529947493,0.02737523,88369.0,88343.0,0.02486034]
[1769529947494,0.33199144,88369.0,88343.0,0.02486034]
[1769529947860,0.02737523,88369.0,88344.0,0.69109942]
[1769529948192,0.02737523,88369.0,88347.0,0.02486034]
[1769529948420,0.02737523,88369.0,88341.0,0.00013945]
[1769529948422,0.01,88347.0,88341.0,0.00013945]
[1769529948575,0.01,88347.0,88330.0,0.11636]
[1769529948762,0.01013927,88347.0,88330.0,0.11636]
[1769529949403,0.01013927,88347.0,88331.0,0.69109942]
[1769529949404,0.00013927,88347.0,88331.0,0.69109942]
[1769529949631,0.01131474,88360.0,88330.0,0.11636]
[1769529949632,0.01131474,88360.0,88334.0,0.02486034]
[1769529949839,0.02673536,88353.0,88336.0,0.02486034]
[1769529950050,0.0106749,88360.0,88336.0,0.02486034]
[1769529950257,0.0106749,88360.0,88334.0,0.00046505]
[1769529950258,0.0106749,88360.0,88338.0,0.02486034]
[1769529950473,0.01035486,88360.0,88338.0,0.02486034]
[1769529950698,0.0100348,88360.0,88338.0,0.02486034]
[1769529950901,0.0100348,88360.0,88341.0,0.69109942]
[1769529951112,0.0100348,88360.0,88344.0,0.02486034]
[1769529951427,0.0100348,88360.0,88345.0,0.02486034]
[1769529951428,0.00971466,88360.0,88345.0,0.02486034]
[1769529952274,0.02737523,88355.0,88334.0,0.00046505]
[1769529952474,0.02737523,88355.0,88335.0,0.11636]
[1769529953367,0.08396524,88355.0,88335.0,0.11636]
[1769529953558,0.02737523,88355.0,88334.0,0.00046505]
[1769529953758,0.05659053,88354.0,88334.0,0.00046505]
[1769529954008,0.02737523,88355.0,88334.0,0.00046505]
[1769529954226,0.02737523,88355.0,88331.0,0.02486034]
[1769529954414,0.02737523,88355.0,88325.0,0.11632]
[1769529954415,0.02737523,88344.0,88325.0,0.11632]
[1769529954980,0.33744531,88340.0,88319.0,0.02263814]
[1769529955183,0.01131999,88333.0,88319.0,0.02263814]
[1769529956766,0.01131999,88333.0,88304.0,0.68915338]
[1769529956767,0.01131999,88333.0,88305.0,0.22648774]
[1769529956943,1.19324563,88392.0,88317.0,0.02263814]
[1769529956944,0.01131999,88343.0,88317.0,0.02263814]
[1769529957137,0.01131999,88343.0,88318.0,0.02263814]
[1769529957921,0.01131999,88343.0,88320.0,0.02263814]
[1769529958084,0.01131999,88343.0,88313.0,0.11632]
[1769529958085,0.01131999,88343.0,88322.0,0.02263814]
[1769529958290,0.01131999,88343.0,88324.0,0.02263814]
[1769529959107,0.02737523,88342.0,88324.0,0.02263814]
[1769529959514,0.02737523,88342.0,88321.0,0.11632]
[1769529959515,0.02737523,88342.0,88321.0,0.11622]
[1769529959724,0.02737523,88342.0,88316.0,0.02263814]
[1769529959725,0.0565999,88340.0,88316.0,0.02263814]
[1769529959922,0.02737523,88328.0,88307.0,0.02263814]
[1769529960119,0.33744531,88340.0,88300.0,0.11632]
[1769529960120,0.02737523,88327.0,88300.0,0.11632]
[1769529960343,0.02737523,88327.0,88303.0,0.02263814]
[1769529961112,0.02783962,88327.0,88303.0,0.02263814]
[1769529961517,0.02490806,88334.0,88300.0,0.11632]
[1769529961518,0.01131999,88334.0,88306.0,0.02263814]
[1769529961759,0.02737523,88353.0,88322.0,0.68915338]
[1769529961921,0.02737523,88353.0,88320.0,0.33744531]
[1769529961922,0.01132079,88350.0,88324.0,0.02263814]
[1769529962322,0.01132079,88350.0,88323.0,0.11632]
[1769529962323,0.01132079,88350.0,88326.0,0.02263814]
[1769529962652,0.09028917,88368.0,88323.0,0.11632]
[1769529962653,0.01132079,88365.0,88333.0,0.68915338]
[1769529962820,0.11232068,88364.0,88331.0,0.68915338]
[1769529963026,0.01132079,88365.0,88341.0,0.02263814]
[1769529963396,0.01132079,88365.0,88330.0,0.33744531]
[1769529963397,0.01132079,88365.0,88343.0,0.02263814]
[1769529965657,0.000425,88373.0,88342.0,0.11632]
[1769529965658,0.04823665,88366.0,88342.0,0.11632]
[1769529965830,0.00226315,88366.0,88343.0,0.68915338]
[1769529966095,0.00226315,88366.0,88349.0,0.68915338]
[1769529966288,0.000425,88373.0,88351.0,0.02263814]
[1769529966489,0.000425,88373.0,88354.0,0.68915338]
[1769529966694,0.000425,88373.0,88357.0,0.02263814]
[1769529966924,0.000425,88373.0,88342.0,0.17291773]
[1769529966925,0.11632,88391.0,88342.0,0.17291773]
[1769529966927,0.05500023,88399.0,88359.0,0.02263814]
[1769529967126,0.05500023,88399.0,88360.0,0.33744531]
[1769529967127,0.02737523,88385.0,88360.0,0.33744531]
[1769529967381,0.05513955,88399.0,88365.0,0.68915338]
[1769529967524,0.01131336,88391.0,88368.0,0.02263814]
[1769529967740,0.09028917,88416.0,88383.0,0.68915338]
[1769529968026,0.16864081,88430.0,88381.0,0.83073289]
[1769529968027,0.16864081,88430.0,88416.0,0.02263814]
[1769529968028,0.01130841,88430.0,88416.0,0.02263814]
[1769529968274,0.16872432,88445.0,88423.0,0.02263814]
[1769529968275,8.351e-05,88445.0,88423.0,0.02263814]
[1769529968429,0.0001,88476.0,88432.0,0.02263814]
[1769529968430,0.05428452,88467.0,88432.0,0.02263814]
[1769529968624,0.15651678,88470.0,88433.0,0.02263814]
[1769529968625,0.01130576,88450.0,88433.0,0.02263814]
[1769529968902,0.05428452,88466.0,88433.0,0.02263814]
[1769529969035,0.05428452,88466.0,88434.0,0.68915338]
[1769529969244,0.04476936,88455.0,88437.0,0.02263814]
[1769529969441,0.05428452,88441.0,88432.0,0.0004643]
[1769529969727,0.04476936,88455.0,88432.0,0.0004643]
[1769529969728,0.05428452,88440.0,88432.0,0.0004643]
[1769529969938,0.05428452,88440.0,88409.0,0.68915338]
[1769529969939,0.04476936,88455.0,88407.0,0.02263814]
[1769529969940,0.01130576,88437.0,88407.0,0.02263814]
[1769529970220,0.05428452,88436.0,88409.0,0.02263814]
[1769529970376,0.01130576,88437.0,88409.0,0.71179152]
[1769529970599,0.05428452,88436.0,88410.0,0.02263814]
[1769529970800,0.01130576,88437.0,88412.0,0.02263814]
[1769529971032,0.01130576,88448.0,88415.0,0.68915338]
[1769529971368,0.000575,88458.0,88408.0,0.11632]
[1769529971369,0.000575,88458.0,88438.0,0.33744531]
[1769529971370,0.01188076,88458.0,88438.0,0.33744531]
[1769529971503,0.01188076,88458.0,88440.0,0.02263814]
[1769529971504,0.000575,88458.0,88440.0,0.02263814]
[1769529971710,0.16782246,88470.0,88440.0,0.02263814]
[1769529971711,0.11130576,88470.0,88440.0,0.71631338]
[1769529971914,0.11130576,88470.0,88450.0,0.33744531]
[1769529971915,0.1,88470.0,88450.0,0.33744531]
[1769529972142,0.1,88470.0,88451.0,0.02253814]
[1769529972300,0.1,88470.0,88452.0,0.11628]
[1769529972497,0.05428452,88469.0,88452.0,0.11674439]
[1769529972751,0.1,88470.0,88452.0,0.11674439]
[1769529972950,0.01130576,88480.0,88452.0,0.11674439]
[1769529972951,0.01130576,88480.0,88453.0,0.02263814]
[1769529973099,0.01130576,88480.0,88452.0,0.00046439]
[1769529973100,0.34875107,88480.0,88452.0,0.00046439]
[1769529973301,0.01130576,88480.0,88454.0,0.02263814]
[1769529973924,0.01130576,88480.0,88455.0,0.11628]
[1769529974131,1.02377358,88480.0,88452.0,0.13928253]
[1769529974402,0.33744531,88470.0,88452.0,0.00036439]
[1769529974572,0.01130576,88470.0,88452.0,0.00036439]
[1769529975231,0.02712968,88469.0,88452.0,0.00036439]
[1769529975429,0.01130576,88470.0,88400.0,0.43744531]
[1769529975430,0.01130576,88470.0,88440.0,0.11624]
[1769529975733,0.01130576,88470.0,88443.0,0.02665145]
[1769529975936,0.01130576,88470.0,88444.0,0.68915338]
[1769529976158,0.01130576,88470.0,88445.0,0.02665145]
[1769529976423,0.01130576,88470.0,88447.0,0.02665145]
[1769529976747,0.01130576,88470.0,88450.0,0.68915338]
[1769529977009,0.01130576,88470.0,88452.0,0.68915338]
[1769529977213,0.01130576,88483.0,88453.0,0.02665145]
[1769529977414,0.01130576,88483.0,88455.0,0.02665145]
[1769529977621,0.01130576,88483.0,88458.0,0.02890078]
[1769529978182,0.01130576,88483.0,88441.0,0.68915338]
[1769529978183,0.01130576,88483.0,88450.0,0.45368531]
[1769529978388,0.01130576,88483.0,88463.0,0.02890078]
[1769529978607,0.001,88499.0,88464.0,0.02890078]
[1769529979237,0.67289252,88496.0,88464.0,0.02890078]
[1769529979452,0.001,88499.0,88471.0,0.68915338]
[1769529979677,0.001,88499.0,88474.0,0.03339928]
[1769529979896,0.001,88499.0,88476.0,0.03339928]
[1769529980123,0.22593798,88520.0,88476.0,0.03339928]
[1769529980125,0.16510367,88522.0,88477.0,0.1162]
[1769529980331,0.000575,88527.0,88504.0,0.68915338]
[1769529980565,0.0002,88559.0,88504.0,0.68915338]
[1769529980566,0.0002,88559.0,88513.0,0.03339928]
[1769529980567,0.22428297,88558.0,88513.0,0.03339928]
[1769529980783,0.01129399,88542.0,88513.0,0.03339928]
[1769529981127,0.22428297,88558.0,88523.0,0.03339928]
[1769529981128,0.01129399,88551.0,88523.0,0.03339928]
[1769529981330,0.01129399,88551.0,88510.0,0.02716]
[1769529981331,0.01129399,88551.0,88530.0,0.33744531]
[1769529981489,0.0002,88559.0,88530.0,0.33744531]
[1769529981490,0.0002,88559.0,88534.0,0.68915338]
[1769529981694,0.0002,88559.0,88535.0,0.03784887]
[1769529981908,0.0002,88559.0,88537.0,0.68915338]
[1769529982109,0.0002,88559.0,88535.0,0.14336]
[1769529982110,0.0002,88559.0,88541.0,0.03784887]
[1769529982753,0.01128992,88566.0,88545.0,0.03784887]
[1769529982928,0.05421248,88585.0,88545.0,0.03784887]
[1769529982929,0.33744531,88570.0,88545.0,0.03642273]
[1769529983141,0.05646305,88554.0,88541.0,0.00046539]
[1769529983337,0.01129163,88561.0,88530.0,0.0371358]
[1769529983518,0.05421248,88557.0,88530.0,0.03760131]
[1769529983720,0.01129163,88561.0,88530.0,0.33791082]
[1769529983955,0.01129163,88561.0,88541.0,0.04163465]
[1769529984156,0.05421248,88589.0,88543.0,0.04163465]
[1769529984157,0.33744531,88580.0,88543.0,0.04163465]
[1769529984370,0.27849545,88589.0,88543.0,0.04146252]
[1769529984371,0.0112907,88568.0,88543.0,0.04146252]
[1769529984559,0.05645443,88567.0,88543.0,0.04146252]
[1769529984736,0.0112907,88568.0,88543.0,0.04146252]
[1769529984936,0.0112907,88568.0,88530.0,0.05467799]
[1769529984937,0.0112907,88568.0,88531.0,0.02310617]
[1769529984938,0.05645761,88563.0,88531.0,0.02310617]
[1769529985167,0.0112907,88568.0,88530.0,0.33791082]
[1769529985340,0.0112907,88568.0,88540.0,0.33744531]
[1769529985550,0.66630415,88585.0,88541.0,0.02310617]
[1769529985551,0.52620989,88585.0,88541.0,0.02310617]
[1769529985757,0.01129036,88571.0,88541.0,0.02310617]
[1769529985956,0.01129036,88571.0,88530.0,0.33791082]
[1769529985958,0.01129036,88571.0,88550.0,0.33744531]
[1769529986165,0.33744531,88600.0,88550.0,0.33744531]
[1769529986166,0.33744531,88600.0,88554.0,0.02531608]
[1769529986167,0.01129036,88591.0,88554.0,0.02531608]
[1769529986515,0.01129036,88581.0,88554.0,0.02531608]
[1769529986906,0.01129036,88581.0,88554.0,0.69118583]
[1769529987145,0.01129036,88581.0,88555.0,0.71650191]
[1769529987331,0.01129036,88581.0,88534.0,0.2259004]
[1769529987333,0.02710012,88596.0,88562.0,0.02531608]
[1769529987544,0.01217626,88599.0,88564.0,0.02756525]
[1769529987545,0.02720012,88595.0,88564.0,0.02756525]
[1769529987678,0.02710012,88593.0,88564.0,0.02756525]
[1769529987884,0.01129036,88588.0,88564.0,0.02756525]
[1769529988287,0.02710012,88587.0,88564.0,0.02756525]
[1769529988469,0.01129036,88588.0,88564.0,0.02803076]
[1769529988882,0.02710012,88587.0,88564.0,0.02803076]
[1769529989106,0.33744531,88580.0,88564.0,0.00046551]
[1769529989328,0.48533835,88586.0,88564.0,0.00046551]
[1769529989520,0.01129036,88588.0,88565.0,0.69118583]
[1769529989732,0.01129036,88588.0,88566.0,0.0298146]
[1769529990153,0.0001,88595.0,88588.0,0.01]
[1769529990351,0.0001,88595.0,88588.0,0.00992072]
[1769529990648,0.0041,88610.0,88588.0,0.00992072]
[1769529990649,0.0041,88610.0,88590.0,0.33744531]
[1769529990871,0.28106802,88636.0,88590.0,0.33744531]
[1769529990872,0.23557333,88628.0,88594.0,0.69118583]
[1769529991067,0.23557333,88628.0,88590.0,0.33744531]
[1769529991068,0.23557333,88628.0,88603.0,0.0298146]
[1769529991069,0.01129036,88628.0,88603.0,0.0298146]
[1769529991288,0.00169228,88638.0,88603.0,0.69118583]
[1769529991468,0.22206232,88636.0,88603.0,0.69118583]
[1769529991610,0.22206232,88636.0,88595.0,0.11608]
[1769529991611,0.22206232,88636.0,88606.0,0.03206425]
[1769529991809,0.04599615,88636.0,88608.0,0.03206425]
[1769529992180,0.00169228,88638.0,88608.0,0.03206425]
[1769529992181,0.00169228,88638.0,88608.0,0.03252976]
[1769529992182,0.05641812,88624.0,88608.0,0.03252976]
[1769529992328,0.00169228,88638.0,88608.0,0.03252976]
[1769529992530,0.01129036,88630.0,88608.0,0.03154386]
[1769529992738,0.00169228,88638.0,88609.0,0.0315713]
[1769529992935,0.00169228,88638.0,88609.0,0.03141274]
[1769529993330,0.00169228,88638.0,88586.0,0.69118583]
[1769529993331,0.00169228,88638.0,88593.0,0.03149202]
[1769529993332,0.05641639,88627.0,88593.0,0.03149202]
[1769529993530,0.01129036,88630.0,88593.0,0.69165228]
[1769529993886,0.01129036,88630.0,88611.0,0.03374167]
[1769529994110,0.01129036,88630.0,88596.0,0.02710012]
[1769529994111,0.01129036,88630.0,88602.0,0.03374167]
[1769529994389,0.00169228,88638.0,88630.0,0.01]
[1769529994587,0.00169228,88638.0,88594.0,0.78778416]
[1769529994588,0.00169228,88638.0,88626.0,0.03331362]
[1769529994881,0.00169228,88638.0,88582.0,0.446502]
[1769529994882,0.08351001,88637.0,88582.0,0.446502]
[1769529995101,0.08351001,88637.0,88581.0,0.02710012]
[1769529995102,0.08351001,88637.0,88601.0,0.02852764]
[1769529995103,0.02710012,88637.0,88601.0,0.02852764]
[1769529995316,0.01129036,88621.0,88601.0,0.02852764]
[1769529995691,0.02710012,88633.0,88601.0,0.02899409]
[1769529995692,0.05641389,88631.0,88601.0,0.02899409]
[1769529995923,0.05641246,88633.0,88601.0,0.02899409]
[1769529995924,0.28106802,88642.0,88601.0,0.02899409]
[1769529995925,0.28106802,88644.0,88631.0,0.01]
[1769529996148,0.01129036,88650.0,88605.0,0.69118583]
[1769529996353,0.0009083,88653.0,88609.0,0.11604]
[1769529996354,0.33489904,88630.0,88609.0,0.11604]
[1769529996529,0.33489904,88630.0,88600.0,0.02712]
[1769529996530,0.02710012,88625.0,88600.0,0.02712]
[1769529996733,0.03839048,88628.0,88592.0,0.02852764]
[1769529997007,0.28106802,88641.0,88592.0,0.02852764]
[1769529997008,0.01129036,88616.0,88592.0,0.02852764]
[1769529997185,0.01129036,88616.0,88592.0,0.00046645]
[1769529997186,0.02710012,88611.0,88592.0,0.00046645]
[1769529997325,0.02710012,88611.0,88577.0,0.02852764]
[1769529997326,0.01129036,88607.0,88577.0,0.02852764]
[1769529997529,0.01129036,88607.0,88578.0,0.66145878]
[1769529997787,0.01129036,88607.0,88583.0,0.03077712]
[1769529997788,0.00129036,88607.0,88583.0,0.03077712]
[1769529997963,0.00129036,88607.0,88557.0,0.06204055]
[1769529997964,0.02710012,88636.0,88563.0,0.03077712]
[1769529997965,0.00129036,88587.0,88563.0,0.03077712]
[1769529998159,0.00175717,88587.0,88563.0,0.03077712]
[1769529998685,0.01,88583.0,88563.0,0.03077712]
[1769529999029,0.01,88583.0,88563.0,0.02858997]
[1769529999235,0.01,88583.0,88517.0,0.02710012]
[1769529999236,0.40376167,88579.0,88524.0,0.02712]
[1769529999492,0.33489904,88580.0,88530.0,0.66145878]
[1769529999493,0.00129036,88570.0,88530.0,0.66145878]
[1769529999692,0.00129036,88570.0,88531.0,0.02968354]
[1769529999693,0.3361894,88570.0,88531.0,0.02968354]
[1769529999851,0.00129036,88557.0,88531.0,0.02968354]
[1769530000263,0.02710012,88554.0,88531.0,0.02968354]
[1769530000460,0.00129036,88557.0,88518.0,0.116]
[1769530000461,0.02710012,88553.0,88518.0,0.116]
[1769530000687,0.02710012,88555.0,88507.0,0.116]
[1769530000884,0.00129036,88557.0,88511.0,0.66145878]
[1769530001166,0.00129036,88557.0,88473.0,0.020736]
[1769530001167,0.00129036,88557.0,88509.0,0.08617438]
[1769530001168,0.00129036,88539.0,88509.0,0.08617438]
[1769530001483,0.00129036,88539.0,88509.0,0.02968354]
[1769530002555,0.00129036,88539.0,88498.0,0.02518575]
[1769530002759,0.00129036,88539.0,88497.0,0.116]
[1769530002961,0.00129036,88539.0,88498.0,0.66145878]
[1769530003202,0.00129036,88539.0,88518.0,0.05648506]
[1769530003379,0.00046652,88557.0,88519.0,0.02518575]
[1769530003380,0.00129036,88555.0,88519.0,0.02518575]
[1769530003586,0.00129036,88555.0,88497.0,0.116]
[1769530003587,0.00129036,88555.0,88504.0,0.05649462]
[1769530003783,0.00129036,88555.0,88497.0,0.116]